Cogmind - Beta 16 @@@ ROGUE MODE // 2025.10.27 @ 13:02:45 Player: AshCrow Result: Destroyed by as-08398 with Assembled Blade Performance ------------- Evolutions (0) 0 Regions Visited (2) 400 Robots Destroyed (11) 55 Value Destroyed (238) 238 Prototype IDs (0) 0 Alien Tech Used (0) 0 Bonus (0) 0 TOTAL SCORE: 693 Bonus ------- None Cogmind --------- Core Integrity 0/250 Matter 272/300 Energy 100/100 System Corruption 4% Temperature Cool (0) Movement Core (50) Location -10/Mines Parts ------- > --- POWER (1) -------- (None) > --- PROPULSION (2) --- (None) > --- UTILITY (2) ------ (None) > --- WEAPON (2) ------- Light Assault Rifle Light Assault Rifle > --- INVENTORY (5) ---- Large Storage Unit Particle Gun Particle Gun Peak State ------------ > --- POWER ------------ Ion Engine > --- PROPULSION ------- Light Treads Light Treads > --- UTILITY ---------- Medium Storage Unit Visual Processing Unit > --- WEAPON ----------- Medium Laser Light Assault Rifle > --- INVENTORY -------- Light Ion Engine Large Storage Unit Large Storage Unit EM Pulse Gun Particle Gun Particle Gun Light Assault Rifle Light Assault Rifle Grenade Launcher [Rating: 9] Favorites ----------- Power Ion Engine Engine Ion Engine Propulsion Light Treads Treads Light Treads Utility Medium Storage Unit Device Tractor Beam Storage Medium Storage Unit Processor Visual Processing Unit Weapon Light Assault Rifle Energy Gun Medium Laser Ballistic Gun Light Assault Rifle Build | -11 -10 -10 ------- Run | Yrd Mat Min Slots Evolved . | . . . Power . | . . . Propulsion . | . . . Utility . | . . . Weapon . | . . . Parts Attached 14 | 9 4 1 Power 2 | 2 . . Engine 2 | 2 . . Core . | . . . Reactor . | . . . Propulsion 2 | 2 . . Treads 2 | 2 . . Leg . | . . . Wheel . | . . . Hover . | . . . Flight . | . . . Utility 4 | 2 2 . Device 1 | 1 . . Storage 2 | 1 1 . Processor 1 | . 1 . Hackware . | . . . Protection . | . . . Artifact . | . . . Weapon 6 | 3 2 1 Energy Gun 3 | 2 1 . Energy Cannon . | . . . Ballistic Gun 3 | 1 1 1 Ballistic Cannon . | . . . Launcher . | . . . Special Weapon . | . . . Impact Weapon . | . . . Slashing Weapon . | . . . Piercing Weapon . | . . . Special Melee Weapon . | . . . Unidentified Prototypes . | . . . Parts Lost 1 | . 1 . Power . | . . . Propulsion . | . . . Utility 1 | . 1 . Weapon . | . . . Highest Loss Streak 1 | . 1 . To Critical Strikes . | . . . Average Backups 6 | . 6 8 Power . | . 1 . Propulsion . | . . . Utility 1 | . 1 1 Weapon 3 | . 3 5 Tool/Special . | . . . Unused Backups 5 | . . 5 Power . | . . . Propulsion . | . . . Utility 2 | . . 2 Weapon 3 | . . 3 Tool/Special . | . . . Average Slot Usage (%) 89 | . 92 83 Engine 13 | . 14 11 Treads 26 | . 28 23 Device 3 | . 6 . Storage 13 | . 14 11 Processor 5 | . . 11 Energy Gun 13 | . 14 11 Ballistic Gun 13 | . 14 12 Peak Build Rating 9 | 7 9 9 Average Rating 7 | 5 7 7 On Entrance 5 | . 7 9 Avg Prop Armor Cover (%) . | . . . Naked Turns 44 | . . 44 Heaviest Build 20 | 14 20 18 Greatest Support 40 | 40 40 40 Greatest Overweight (x) 2 | 2 . . Average Overweight (x) . | . . . Largest Inventory Capacity 10 | 8 10 10 Average Capacity 9 | 7 9 9 Most Carried 9 | 1 9 9 Average Carried 6 | . 6 8 Final Capacity 10 | 8 10 5 Final Carried 9 | 1 9 3 Class Distribution -------------------- 100% | Mutant Dominant Class ---------------- Mutant | -10/Materials Mutant | -10/Mines Resources | -11 -10 -10 ----------- Run | Yrd Mat Min Matter Collected 391 | 295 78 18 Remotely 221 | 175 46 . Salvage Created 393 | 100 248 45 Parts 21 | 2 19 . Haulers Intercepted . | . . . Recyclers Shooed 1 | 1 . . Parts Field Recycled . | . . . Retrieved Matter . | . . . Parts Self-Destructed . | . . . Prevented . | . . . Parts Restored . | . . . Kills | -11 -10 -10 ------- Run | Yrd Mat Min Combat Hostiles Destroyed 11 | . 8 3 Guns 11 | . 8 3 Classes Destroyed 6 | 1 4 1 Recycler 1 | 1 . . Operator 1 | . 1 . Watcher 1 | . 1 . Swarmer 3 | . 3 . Grunt 5 | . 5 . Assembled 3 | . . 3 Best Kill Streak 3 | 1 3 3 Combat Bots Only 3 | . 3 3 Max Kills in Single Turn 1 | 1 1 1 Gunslinging . | . . . Exploded . | . . . Melee . | . . . Uniques/NPCs Destroyed . | . . . Combat | -11 -10 -10 -------- Run | Yrd Mat Min Hostile Shots Fired 63 | . 37 26 Missed 18 | . 9 9 Hits 45 | . 28 17 Melee 8 | . . 8 Projectile 37 | . 28 9 AOE 2 | . . 2 Critical Strikes 1 | . . 1 Damage Taken 684 | . 290 394 Core 257 | . 101 156 Absorbed by Shields . | . . . Core Remaining (%) 100 | 100 . . Volleys Fired 56 | 5 34 17 Largest 2 | 2 2 2 Hottest 85 | 70 85 70 Shots Fired 110 | 10 65 35 Gun 110 | 10 65 35 Cannon . | . . . Launcher . | . . . Special . | . . . Kinetic 61 | 5 34 22 Thermal 46 | 2 31 13 Explosive . | . . . Electromagnetic 3 | 3 . . Robot Hit Streak 5 | 2 5 5 Robot Miss Streak 5 | 1 5 2 Penetration Max . | . . . Secondary Targets 2 | . 1 1 Max Gunslinging Chain 1 | . 1 1 Shots Hit Robots 58 | 7 34 17 Core Hits 31 | 3 19 9 Critical Kills . | . . . Critical Parts Destroyed 1 | . 1 . Critical Strikes 2 | . 2 . Burn 1 | . 1 . Destroy 1 | . 1 . Melee Attacks . | . . . Impact . | . . . Slashing . | . . . Piercing . | . . . Sneak Attacks . | . . . Combat Hostiles . | . . . Follow-up Attacks . | . . . Damage Inflicted 609 | 71 374 164 Guns 596 | 71 362 163 Cannons . | . . . Explosions . | . . . Melee . | . . . Ramming 13 | . 12 1 Kinetic 268 | 32 161 75 Thermal 315 | 26 201 88 Explosive . | . . . Electromagnetic 13 | 13 . . Impact . | . . . Slashing . | . . . Piercing . | . . . Highest Corruption 4 | . 4 4 Average Corruption 3 | . 3 4 Corruption Purged . | . . . Corruption Blocked . | . . . Effects 9 | . 1 8 Message Errors 2 | . . 2 Matter Fused 1 | . . 1 Heat Flow Errors 2 | . . 2 Energy Discharges 1 | . 1 . Data Loss (minor) 1 | . . 1 Misfires 1 | . . 1 Alerts 1 | . . 1 Overload Shots . | . . . Overflow Damage . | . . . Projectiles . | . . . Explosions . | . . . Melee . | . . . Knockbacks . | . . . Impact . | . . . Kinetic . | . . . Secondary . | . . . Self-Inflicted Damage . | . . . Shots . | . . . Rammed 4 | . 2 2 Targets Rammed 4 | . 2 2 Kicked . | . . . Crushed . | . . . Highest Temperature 360 | 40 360 303 Average Temperature 88 | 17 102 75 Received Heat Transfer 172 | . 132 40 Siege Activations . | . . . Martial Activations . | . . . Shielding Activations . | . . . Robots Disrupted . | . . . Combat Hostiles . | . . . Robots Corrupted . | . . . Combat Hostiles . | . . . Parts Fried . | . . . Impact Corruptions . | . . . Robots Melted . | . . . Combat Hostiles . | . . . Parts Melted . | . . . Heat Transferred 999 | 74 666 259 Parts Sabotaged . | . . . Parts Stolen . | . . . Parts Stripped . | . . . Power Chain Reactions . | . . . Alert | -11 -10 -10 ------- Run | Yrd Mat Min Maximum Alert Level . | . . . Low Security (%) 100 | 100 100 100 Level 1 . | . . . Level 2 . | . . . Level 3 . | . . . Level 4 . | . . . Level 5 . | . . . High Security . | . . . Max Security . | . . . Peak Influence 70 | 5 70 . Initial . | . . . Average 10 | . 18 . Influence Increases 209 | 5 204 . Destroy 0b10 Robot/C 160 | . 160 . Destroy 0b10 Robot/NC 15 | 5 10 . Destroy Leader 22 | . 22 . Successful Hack 12 | . 12 . Influence Decreases 209 | 5 204 . Time Decay 199 | 5 194 . Lost Part 10 | . 10 . Squads Dispatched 1 | . 1 . Investigation . | . . . Extermination . | . . . Reinforcement 1 | . 1 . Assault . | . . . Garrison . | . . . Intercept . | . . . Searches Triggered . | . . . Construction Impeded . | . . . Haulers Reinforced . | . . . Active Scanning Responses . | . . . Cargo Convoy Interrupts . | . . . Stealth | -11 -10 -10 --------- Run | Yrd Mat Min Distress Signals 2 | . . 2 Communications Jammed . | . . . Distress Signals . | . . . Times Spotted 32 | . 15 17 Peak Tracking Total 8 | . 4 8 Tactical Retreats 1 | . . 1 Traps | -11 -10 -10 ------- Run | Yrd Mat Min Traps Triggered 3 | . 3 . Indirectly . | . . . Trap Hack Attempts . | . . . Triggered . | . . . Disarmed . | . . . Reprogrammed . | . . . Reused . | . . . Traps Extracted . | . . . Installed . | . . . Triggered . | . . . Machines | -11 -10 -10 ---------- Run | Yrd Mat Min Machines Disabled . | . . . Max in Single Turn . | . . . Machines Repaired . | . . . Machines Dismantled . | . . . Machines Sabotaged . | . . . Overloaded Fab Kills . | . . . Hacking | -11 -10 -10 --------- Run | Yrd Mat Min Machines Accessed 3 | . 3 . Terminals 3 | . 3 . Fabricators . | . . . Repair Stations . | . . . Recycling Units . | . . . Scanalyzers . | . . . Garrison Access . | . . . Total Hacks 7 | . 7 . Successful 3 | . 3 . Failed 4 | . 4 . Catastrophic 1 | . 1 . Database Lockouts . | . . . Manual 7 | . 7 . Terminals 7 | . 7 . Fabricators . | . . . Repair Stations . | . . . Recycling Units . | . . . Scanalyzers . | . . . Garrison Access . | . . . Terminal Hacks . | . . . Fabricator Hacks . | . . . Repair Station Hacks . | . . . Recycling Unit Hacks . | . . . Scanalyzer . | . . . Garrison Access Hacks . | . . . Unauthorized Hacks 3 | . 3 . Terminals 3 | . 3 . Assimilate 2 | . 2 . Operators 1 | . 1 . Fabricators . | . . . Repair Stations . | . . . Recycling Units . | . . . Scanalyzers . | . . . Garrison Access . | . . . Data Cores Recovered . | . . . Used . | . . . Hacking Detections 3 | . 3 . Full Trace Events . | . . . Feedback Events . | . . . Feedback Blocked . | . . . Robot Schematics Acquired . | . . . Robots Built . | . . . Authchips . | . . . Time . | . . . Total Robot Build Rating . | . . . Part Schematics Acquired . | . . . Parts Built . | . . . Authchips . | . . . Time . | . . . Total Part Build Rating . | . . . Part Studies Acquired . | . . . Parts Repaired . | . . . Time . | . . . Parts Recycled . | . . . Recycled Matter . | . . . Retrieved Matter . | . . . Retrieved Components . | . . . Parts Scanalyzed . | . . . Part Schematics Acquired . | . . . Parts Damaged . | . . . Bothacking | -11 -10 -10 ------------ Run | Yrd Mat Min Used RIF Installer . | . . . Robots Hacked . | . . . Non-combat . | . . . Combat . | . . . Robot Hacks Applied . | . . . Relay Couplers Released . | . . . Fabnet Peak Effective % . | . . . Robots Rewired . | . . . Allies Hacked . | . . . Hacks Repelled . | . . . Allies | -11 -10 -10 -------- Run | Yrd Mat Min Total Allies . | . . . Largest Group . | . . . Highest-Rated Group . | . . . Highest-Rated Ally . | . . . Total Orders . | . . . Ally Attacks . | . . . Total Damage . | . . . Kills . | . . . Allies Corrupted . | . . . Allies Melted . | . . . Intel | -11 -10 -10 ------- Run | Yrd Mat Min Active Infowar (turns) 322 | . 39 283 Optics 322 | . 39 283 Robot Analysis Total . | . . . Derelict Logs Recovered 1 | . . 1 Drone Launches . | . . . Drone Recoveries . | . . . Exploration | -11 -10 -10 ------------- Run | Yrd Mat Min Turns Passed 1020 | 122 560 338 Spaces Moved 550 | 64 257 229 Core 96 | 10 . 86 Treads 454 | 54 257 143 Legs . | . . . Wheels . | . . . Hover . | . . . Flight . | . . . Fastest Speed 50 | 50 160 50 Average Speed 141 | 149 160 118 Slowest Speed 160 | 160 160 160 Overloaded Moves . | . . . Propulsion Burnouts . | . . . Robots Hopped . | . . . Potential Cave-ins . | . . . Cave-ins Triggered . | . . . Exploration Rate (%) 38 | 5 50 60 Regions Visited 2 Branch Regions 1 Pre-discovered Areas . | . . . Known Exits Taken . | . . . Unknown Exits Taken 2 | 1 1 . Scrap Searched . | . . . Spaces Dug . | . . . Terrain Destroyed . | . . . Melee . | . . . Projectile . | . . . AOE . | . . . Terrain Rammed . | . . . Walls Destroyed . | . . . Machines Disabled . | . . . Actions | -11 -10 -10 --------- Run | Yrd Mat Min Total 687 | 77 345 265 Wait 56 | . 41 15 Move 548 | 63 256 229 Hop . | . . . Pick Up 6 | . 6 . Fast Attach 8 | 7 1 . Attach 2 | . . 2 Detach . | . . . Swap 6 | 2 4 . Drop 1 | . 1 . Fire 56 | 5 34 17 Melee . | . . . Ram . | . . . Kick . | . . . Crush 4 | . 2 2 Escape Stasis . | . . . Rewire . | . . . Trap . | . . . Miscellaneous . | . . . Route ------- -11/Scrapyard -10/Materials (discovered 3 exits: [*Mat] / [*Min] / [*Sub]) -10/Mines (discovered 1 exit: [*Mat]) History --------- Turn | Location | Event 12 | -11/Scrapyard | Discovered new exit (range 15) 123 | -11/Scrapyard | Entered Materials 314 | -10/Materials | Build established: Mutant 482 | -10/Materials | Discovered new exit (range 13) 594 | -10/Materials | Discovered new exit (range 13) 664 | -10/Materials | Discovered new exit (range 13) 683 | -10/Materials | Entered Mines 711 | -10/Mines | Discovered new exit (range 7) 832 | -10/Mines | Assembled infested the area 837 | -10/Mines | Assisted by a Guerilla fighting off Assembled 966 | -10/Mines | Released all parts (7) 968 | -10/Mines | Core integrity fell below 50% 997 | -10/Mines | Learned 2 Materials zone layouts 1019 | -10/Mines | Core integrity fell below 20% 1021 | -10/Mines | Destroyed by as-08398 with Assembled Blade Last Messages --------------- as-04610 destroyed. Acquired 2 matter. Acquired 1 matter. Released Visual Processing Unit. Released Med. Laser. Released Med. Storage Unit. Released Lgt. Treads. Released Ion Engine. Released Lgt. Assault Rifle. System corrupted: Heat flow error (+253). as-26876 destroyed. as-83416 destroyed. D-53 Grenadier heat short circuits Mni. Grenade Launcher. T-07 Excavator is excavating. as-08398 sneak attacks. Acquired derelict log, extracted data. Data stored: Materials zone layouts (x2). T-07 Excavator destroyed. S-10 Pest destroyed. Map ----- +----------------------------------------------------+ | ### =!! ## ##???????????????????????????# #?? | | = #####????????????????????????????? #?? | | #????? ?????????????????????????? ??? | | ###### ????????????????????????? ??? | | # ??????????????????????????? ??? | | # ????????????????????????????????? | | " ### #???????????????????????????????? | | #???? ????????????????????????????????? | | # # #??????#???????????????????????????????? | | ###### ! ##?????????????????????????????????????? | | #######% #?????????????????????????????????????? | | = #?????????????????????????????????????? | | #?????????????????????????????????????? | | %###### #????????????????????????????????????? | | #?????# #?????????????????????????????????? | | #??????### #????????????????????????????????? | | #?????????# #???????????????????????????????? | | ##?????????#####???????????????????????????????? | | ###???????????????????????????????????????????? | | ##?????####?####????????????????????????????? | | #????## ### ##???????????????????????????? | | #???## #???????????????????????????? | | #???# ##??????????????????????????? | | ##??# """ ###????????????????????????? | | ##?# """ #####%#??????????????????? | | ### ### """ a@ a#??????????????????? | | ??## r ####s#??????????????????? | | ???# ###### ##???????????????????????? | | ?###% ########????## #????????????????????????? | | ?# #???????????## #????????????????????????? | | ?# ##????????#### ##????????????????????????? | | ?#####????????## ###?????????????????????????? | | ??????????????# ##???????????????????????????? | | ??????????????# ##????????????????????????????? | | ??????????????## ##?????????????????????????????? | | ???????????????####??????????????????????????????? | | ?????????????????????????????????????????????????? | | ?????????????????????????????????????????????????? | | ?????????????????????????????????????????????????? | | ?????????????????????????????????????????????????? | | ?????????????????????????????????????????????????? | | ?????????????????????????????????????????????????? | | | | | | | | | | | | | | | | | +----------------------------------------------------+ Best States ------------- Heat Dissipation 25 Energy Generation 10 Energy Capacity 250 Matter Stores 300 Matter Capacity 300 Sight Range 18 Terrain Scan Density 10 Evasion (%) 50 Recoil Reduction 2 Item Schematics ----------------- None Robot Schematics ------------------ None Fabricated ------------ Nothing Repaired ---------- Nothing Studied --------- None Alien Tech Used ----------------- None Achievements -------------- Spot Them First Challenges ------------ None Game ------ Seed ProjectileStructuralTrap Manual? 0 Play Time 00:09:11 Cumulative 46.3 hours Start 2025.10.27 @ 12:53:28 End 2025.10.27 @ 13:02:45 Sessions 1 Manual Loads 0 Difficulty Rogue Special Mode None Game No. 87 Rogue 84 Adventurer 0 Explorer 3 Win Type - Total 1 Types 1/0/0/0/0/0/0/0/0/0 Lore% 40 Gallery% 32 Achievement% 23 Wizard Run 0 Options --------- Layout 1 ASCII 0 Keyboard 1 Movement Numpad Keybinds 0 Fullscreen 1 Font 24/Smallcaps Map View 50x35 Zoom Use 0% Tactical HUD 0 Map Filters NONE Filters NONE Steam 1 RUN: 2eb09bd9-25cd-4556-94b7-93fcd4e54620